[Event "CCT Julius Baer-D1 2024"]
[Site "Online"]
[Date "2024.09.27"]
[Round "1"]
[White "Vachier-Lagrave, Maxime"]
[Black "Aronian, Levon"]
[Result "0-1"]
[ECO "C02"]
[WhiteElo "2731"]
[BlackElo "2729"]
[Annotator "TA"]
[PlyCount "134"]
[EventDate "2024.09.25"]
[EventType "swiss"]
[EventCountry "NET"]
[SourceTitle "playchess.com"]
[Source "ChessBase"]
[SourceQuality "1"]
[TimeControl "600+2"]

{[%evp 49,134,-60,-70,-78,-70,-142,-145,-147,-154,-143,-140,-141,-145,-150,-153,-165,-148,-162,-159,-150,-99,-114,-109,-160,-148,-174,-183,-178,-177,-168,-155,-148,-148,-176,-149,-160,-173,-188,-185,-181,-181,-165,-80,-80,-77,-76,-69,-79,-68,-71,-52,-73,-59,-62,-50,-347,-52,-59,-42,-42,-46,-43,-24,-54,-27,-29,0,-54,-54,-62,-54,-74,-60,-67,-65,-66,-66,-309,-68,-68,-68,-65,-68,-206,-68,-29986,-29987]} 1. e4 {[%emt 0:00:02]} e6 {[%emt 0:00:03]} 2. d4 {[%emt 0:00:02]} d5 {[%emt 0:00:01]} 3. e5 {[%emt 0:00:01]} c5 {[%emt 0:00:02]} 4. c3 {[%emt 0:00:01]} Nc6 {[%emt 0:00:01]} 5. Nf3 {[%emt 0:00:00]} Bd7 {[%emt 0:00:01]} 6. Be2 {[%emt 0:00:01]} Nge7 {[%emt 0:00:01]} 7. O-O {[%emt 0:00:02]} Nf5 {[%emt 0:00:01]} 8. Bd3 {[%emt 0:00:17]} cxd4 {[%emt 0:00:04]} 9. Bxf5 {[%emt 0:00:03]} exf5 {[%emt 0:00:01]} 10. Nxd4 {[%emt 0:00:12] C02: French: Advance Variation.} Be7 {[%emt 0:00:10]} 11. Re1 {[%emt 0:00:17]} O-O {[%emt 0:00:01]} 12. Na3 $146 {[%emt 0:00:23]} ({Predecessor:} 12. Nf3 Be6 13. Be3 Qc7 14. Nbd2 h6 15. Nb3 Nxe5 16. Nxe5 Qxe5 17. Bxa7 Qc7 18. Bd4 {½-½ Zhigalko,S (2656)-Korobov,A (2700) Wch Blitz 9th 2015 (6)}) 12... Bxa3 {[%emt 0:00:11]} 13. bxa3 {[%emt 0:00:03]} Re8 {[%emt 0:00:43]} 14. Nf3 {[%emt 0:00:06]} Qe7 {[%emt 0:00:44]} 15. Rb1 {[%emt 0:00:42]} b6 {[%emt 0:00:08]} 16. Qxd5 {[%emt 0:00:15]} h6 {[%emt 0:00:23]} 17. e6 {[%emt 0:01:04]} fxe6 {[%emt 0:00:07]} 18. Qb3 {[%emt 0:00:02]} Na5 {[%emt 0:00:27]} 19. Qb4 {[%emt 0:00:07]} Bc6 {[%emt 0:00:21]} 20. Ne5 {[%emt 0:00:15]} Be4 {[%emt 0:00:02]} 21. Qxe7 {[%emt 0:00:27]} Rxe7 {[%emt 0:00:02]} 22. Rb4 {[%emt 0:01:32]} Rc7 {[%emt 0:00:07]} 23. c4 {[%emt 0:00:40]} Rac8 {[%emt 0:00:17]} 24. f3 {[%emt 0:00:06]} Bd5 {[%emt 0:00:04]} 25. Bxh6 {[%emt 0:00:03]} Nxc4 {[%emt 0:00:26]} ({Much worse is} 25... Bxc4 26. Bg5 $11) 26. Bf4 {[%emt 0:00:39]} Nxa3 {[%emt 0:00:18]} 27. Re2 {[%emt 0:00:20]} ({White should try} 27. Ra4 $15 Nc4 28. Nd3) 27... Rc2 $17 {[%emt 0:00:28]} 28. Rb2 {[%emt 0:00:08]} Rxb2 {[%emt 0:00:22]} 29. Rxb2 {[%emt 0:00:00]} Rc2 {[%emt 0:00:02]} 30. Rxc2 {[%emt 0:00:01]} Nxc2 {[%emt 0:00:00]} 31. a4 {[%emt 0:00:00]} Bb3 {[%emt 0:00:20]} 32. Nc6 {[%emt 0:00:03]} Bxa4 {[%emt 0:00:06]} 33. Nxa7 {[%emt 0:00:03]} Bd7 $1 {[%emt 0:00:01]} 34. Kf2 {[%emt 0:00:17]} Nb4 {[%emt 0:00:09]} ({Better is} 34... Kf7 35. Ke2 b5) 35. Bd6 {[%emt 0:00:07]} Nd5 {[%emt 0:00:04]} 36. h4 {[%emt 0:00:08]} (36. f4 $142) 36... f4 $17 {[%emt 0:00:26]} 37. g3 {[%emt 0:00:13]} fxg3+ {[%emt 0:00:11]} 38. Bxg3 {[%emt 0:00:00]} Kh7 {[%emt 0:00:21]} 39. Ke2 {[%emt 0:00:07]} Kg6 {[%emt 0:00:33]} 40. Kd3 {[%emt 0:00:10]} Kf5 {[%emt 0:00:10]} 41. Kc4 {[%emt 0:00:06]} Ne3+ {[%emt 0:00:12]} 42. Kd3 {[%emt 0:00:09]} Ng2 {[%emt 0:00:01]} 43. Kc4 {[%emt 0:00:09]} g6 {[%emt 0:00:50]} 44. Kd4 {[%emt 0:01:07] [#]} Nf4 $1 {[%emt 0:00:12]} 45. Kc4 {[%emt 0:00:01]} Nd5 {[%emt 0:01:06]} (45... e5 $19 {[%cal Ob6b5] and Black stays clearly on top. White must now prevent ...b5+!} 46. Bf2 Be6+ 47. Kb5 Bd5 48. Bxb6 Bxf3) 46. Kd4 $17 {[%emt 0:00:02]} b5 {[%emt 0:00:02]} 47. Kc5 {[%emt 0:00:06]} b4 {[%emt 0:00:01]} 48. Kc4 {[%emt 0:00:01]} Ba4 {[%emt 0:00:27]} 49. Nc8 {[%emt 0:00:02]} Bc2 {[%emt 0:00:01]} 50. Nd6+ {[%emt 0:00:05]} Kf6 {[%emt 0:00:01]} 51. Kd4 {[%emt 0:00:22]} b3 {[%emt 0:00:11]} 52. Be5+ {[%emt 0:00:01]} Ke7 {[%emt 0:00:03]} 53. Nc4 {[%emt 0:00:00]} Bd1 {[%emt 0:00:10]} 54. Ke4 {[%emt 0:00:17]} Kd7 {[%emt 0:00:04]} 55. Bb2 {[%emt 0:00:03]} Bc2+ {[%emt 0:00:04]} 56. Kd4 {[%emt 0:00:01]} Ne7 {[%emt 0:00:18]} 57. Kc5 {[%emt 0:00:09]} Nd5 {[%emt 0:00:06]} 58. Kd4 $1 {[%emt 0:00:05]} Nf4 {[%emt 0:00:01]} 59. Ne5+ {[%emt 0:00:07]} Kd6 {[%emt 0:00:01]} 60. Ba3+ {[%emt 0:00:05]} Kc7 {[%emt 0:00:01]} 61. Kc3 {[%emt 0:00:02]} Ng2 {[%emt 0:00:05]} 62. Be7 {[%emt 0:00:01]} Ne3 {[%emt 0:00:01]} 63. Bg5 $2 {[%emt 0:00:02]} (63. Ba3 $15) 63... Nd5+ $2 {[%emt 0:00:07]} (63... Nd1+ $19 64. Kd2 Bf5) 64. Kb2 $15 {[%emt 0:00:01]} Kb6 {[%emt 0:00:02]} 65. Nc4+ {[%emt 0:00:06]} Kc5 {[%emt 0:00:01]} 66. Nd2 {[%emt 0:00:01] [#]} (66. Ne3 $1 $15) 66... Kb4 {[%emt 0:00:02]} (66... Kd4 $1 $19 67. Nxb3+ Bxb3 68. Kxb3 Ne3) 67. Be7+ $2 {[%emt 0:00:01][%mdl 8192]} (67. Bh6 $15) 67... Nxe7 {[%emt 0:00:01]} 0-1

[Event "CCT Julius Baer-D1 2024"]
[Site "Online"]
[Date "2024.09.27"]
[Round "1"]
[White "Aronian, Levon"]
[Black "Vachier-Lagrave, Maxime"]
[Result "1-0"]
[ECO "B90"]
[WhiteElo "2729"]
[BlackElo "2731"]
[Annotator "TA"]
[PlyCount "125"]
[EventDate "2024.09.25"]
[EventType "swiss"]
[EventCountry "NET"]
[SourceTitle "playchess.com"]
[Source "ChessBase"]
[SourceQuality "1"]
[TimeControl "600+2"]

{[%evp 43,125,17,23,35,45,41,45,39,43,0,19,21,20,20,20,21,21,0,0,0,0,0,0,0,0,0,0,0,0,0,0,-6,-8,-8,0,-35,-50,-29,-8,-9,0,-17,0,0,0,0,18,12,10,16,18,19,47,47,44,44,47,46,125,125,110,110,177,177,162,119,246,254,1958,1958,2210,2029,1965,1878,29975,29975,29939,5956,6569,6569,4850,4638,4627,1895]} 1. e4 {[%emt 0:00:02] Ter Sahakyan,Samvel} c5 {[%emt 0:00:03]} 2. Nf3 {[%emt 0:00:01]} d6 {[%emt 0:00:01]} 3. d4 {[%emt 0:00:01]} cxd4 {[%emt 0:00:00]} 4. Nxd4 {[%emt 0:00:01]} Nf6 {[%emt 0:00:00]} 5. Nc3 {[%emt 0:00:00]} a6 {[%emt 0:00:01]} 6. Bd3 {[%emt 0:00:01]} e5 {[%emt 0:00:00] 6...g6 deserves study.} 7. Nde2 {[%emt 0:00:01]} Nc6 {[%emt 0:00:01] B90: Sicilian Najdorf: Unusual White 6th moves, 6 Be3 Ng4 and 6 Be3 e5.} 8. O-O {[%emt 0:00:03]} Be6 {[%emt 0:00:03]} 9. f4 {[%emt 0:00:05]} exf4 {[%emt 0:00:01]} 10. Nxf4 {[%emt 0:00:01]} Ne5 {[%emt 0:00:01]} 11. b3 {[%emt 0:00:11]} Be7 {[%emt 0:00:05]} 12. Bb2 {[%emt 0:00:03]} O-O {[%emt 0:00:02]} 13. h3 {[%emt 0:00:08]} Re8 {[%emt 0:00:08]} 14. Kh1 {[%emt 0:00:10]} Bf8 {[%emt 0:00:04]} 15. Qe1 {[%emt 0:00:28]} g6 {[%emt 0:00:06]} 16. Rd1 {[%emt 0:00:02]} Rc8 {[%emt 0:00:07]} 17. Nce2 $146 {[%emt 0:00:32]} ({Predecessor:} 17. Qf2 Bg7 18. Na4 Qe7 19. Nb6 Rc6 20. Bd4 Qc7 21. Qg1 Qe7 22. c4 Nfd7 23. Nbd5 {1-0 Sindarov,J (2629)-Ter Sahakyan,S (2625) Olympiad-44 Chennai 2022 (9.3)}) 17... Bd7 {[%emt 0:00:13]} 18. Qf2 {[%emt 0:00:16]} Bg7 {[%emt 0:00:29]} 19. Nd5 {[%emt 0:00:20]} Nxd5 {[%emt 0:00:18]} 20. Bxe5 {[%emt 0:00:02]} Bxe5 {[%emt 0:00:20]} 21. Qxf7+ {[%emt 0:00:03]} Kh8 {[%emt 0:00:01]} 22. exd5 {[%emt 0:00:06]} (22. Qxd5 Re7 23. Qxb7 $17) 22... Rf8 {[%emt 0:01:25]} (22... Bg4 {keeps more tension.} 23. Qxb7 Rf8 24. Rxf8+ Qxf8 25. Kg1 Bxe2 26. Bxe2 Rxc2 27. Rf1 Qe8) 23. Qxf8+ {[%emt 0:00:02]} Qxf8 {[%emt 0:00:00]} 24. Rxf8+ {[%emt 0:00:01]} Rxf8 {[%emt 0:00:00]} 25. Ng1 {[%emt 0:00:20]} Bc3 {[%emt 0:00:06]} 26. Ne2 {[%emt 0:00:21]} Be5 {[%emt 0:00:01]} 27. Re1 {[%emt 0:00:39]} g5 {[%emt 0:00:25]} 28. Ng1 {[%emt 0:01:17]} g4 {[%emt 0:00:02]} 29. hxg4 {[%emt 0:00:03]} Bxg4 {[%emt 0:00:00]} 30. Be2 {[%emt 0:01:01]} h5 {[%emt 0:00:25]} 31. Bf3 {[%emt 0:01:09]} b5 {[%emt 0:01:10]} 32. c4 {[%emt 0:00:07]} bxc4 {[%emt 0:00:00]} 33. bxc4 {[%emt 0:00:01]} Bg3 {[%emt 0:01:31]} 34. Re3 {[%emt 0:00:37]} Bf2 {[%emt 0:00:09]} 35. Re4 {[%emt 0:00:53]} Bf5 {[%emt 0:00:26]} 36. Re2 {[%emt 0:00:01]} Bc5 {[%emt 0:00:06]} 37. Rd2 {[%emt 0:00:23]} h4 {[%emt 0:00:21]} 38. Ne2 {[%emt 0:00:04]} Be3 {[%emt 0:00:28]} 39. Rd1 {[%emt 0:00:01]} Bc2 {[%emt 0:00:11]} 40. Re1 {[%emt 0:00:01]} Bf2 {[%emt 0:00:19]} 41. Rf1 {[%emt 0:00:38]} Bc5 {[%emt 0:00:02]} 42. Nc3 {[%emt 0:00:00]} Bd3 {[%emt 0:00:21]} 43. Rd1 {[%emt 0:00:02]} Bxc4 {[%emt 0:00:04]} 44. Ne4 {[%emt 0:00:01]} Rc8 {[%emt 0:00:44]} 45. Rc1 {[%emt 0:00:03]} Bxa2 {[%emt 0:00:29]} (45... Bxd5 $2 {loses.} 46. Nxd6 Rd8 (46... Rc7 $2 47. Ne8 $18) 47. Rxc5 $18) 46. Nxd6 {[%emt 0:00:10]} Rc7 {[%emt 0:00:01]} 47. Ne8 {[%emt 0:00:25]} Re7 {[%emt 0:00:02]} 48. Rxc5 {[%emt 0:00:07]} Rxe8 {[%emt 0:00:00]} 49. Kh2 {[%emt 0:00:03]} Kg7 {[%emt 0:00:18]} 50. Kh3 {[%emt 0:00:01]} Rh8 {[%emt 0:00:09]} ({Black should try} 50... Rd8 $14) 51. Rc7+ $16 {[%emt 0:00:17]} Kf6 {[%emt 0:00:01]} 52. Rc6+ {[%emt 0:00:01]} Kg5 {[%emt 0:00:14]} (52... Ke5 $16 {was called for.}) 53. Rxa6 $18 {[%emt 0:00:01]} Bb1 {[%emt 0:00:01] [#]} 54. Ra4 $1 {[%emt 0:00:06]} Bf5+ {[%emt 0:00:02]} (54... Rb8 $16) 55. Bg4 $18 {[%emt 0:00:01]} Bg6 $2 {[%emt 0:00:04]} (55... Rb8) 56. d6 $18 {[%emt 0:00:06]} Rd8 {[%emt 0:00:04]} 57. d7 {[%emt 0:00:03]} Bd3 {[%emt 0:00:04]} 58. Rd4 {[%emt 0:00:05]} Bf1 {[%emt 0:00:02]} 59. Rd5+ {[%emt 0:00:02]} Kg6 {[%emt 0:00:01]} 60. Rd1 {[%emt 0:00:02]} (60. Re5 $142 Bc4 61. Kxh4 (61. Re8 Rxd7 62. Bxd7 Kg5 $18) 61... Bf7 62. Re8 Rxe8 63. dxe8=Q Bxe8 64. Bh5+ Kh7 65. Bxe8) 60... Bc4 {[%emt 0:00:02]} 61. Kxh4 {[%emt 0:00:02]} Kf6 {[%emt 0:00:00]} 62. Kg3 {[%emt 0:00:03]} Ke5 {[%emt 0:00:04]} 63. Re1+ {[%emt 0:00:02]} (63. Rc1 $142 Kd5 64. Kf4) 1-0

[Event "CCT Julius Baer-D1 2024"]
[Site "Online"]
[Date "2024.09.27"]
[Round "1"]
[White "Fedoseev, Vladimir"]
[Black "Firouzja, Alireza"]
[Result "1/2-1/2"]
[ECO "D50"]
[WhiteElo "2692"]
[BlackElo "2767"]
[Annotator "TA"]
[PlyCount "55"]
[EventDate "2024.09.25"]
[EventType "swiss"]
[EventCountry "NET"]
[SourceTitle "playchess.com"]
[Source "ChessBase"]
[SourceQuality "1"]
[TimeControl "600+2"]

{[%evp 16,55,29,17,28,-7,0,-4,-8,-8,-15,-7,-16,-18,-10,-67,-45,-99,-98,-104,-69,-73,0,0,0,0,0,0,0,0,0,0,0,0,0,0,0,0,0,0,0,0]} 1. d4 {[%emt 0:00:03]} d5 {[%emt 0:00:05]} 2. Nf3 {[%emt 0:00:03]} Nf6 {[%emt 0:00:01]} 3. c4 {[%emt 0:00:02]} e6 {[%emt 0:00:05]} 4. Nc3 {[%emt 0:00:03]} c5 {[%emt 0:00:11]} 5. Bg5 {[%emt 0:00:10]} cxd4 {[%emt 0:00:06]} 6. Nxd4 {[%emt 0:00:05]} dxc4 {[%emt 0:00:09]} 7. e3 {[%emt 0:00:07]} Be7 {[%emt 0:00:05]} 8. Bxc4 {[%emt 0:00:05]} O-O {[%emt 0:00:06]} 9. O-O {[%emt 0:00:01]} Bd7 {[%emt 0:00:01]} 10. Qb3 {[%emt 0:00:08]} Nc6 {[%emt 0:00:04]} 11. Nxc6 {[%emt 0:01:02]} (11. Qxb7 $2 Na5 12. Qa6 Bc8 13. Bxf6 (13. Qb5 $2 a6 $19) 13... Bxf6 $19 (13... Bxa6 $2 14. Bxe7 Qxe7 15. Bxa6 $19)) 11... Bxc6 {[%emt 0:00:01]} 12. Rfd1 {[%emt 0:00:05]} Qa5 {[%emt 0:00:01]} 13. Bf4 {[%emt 0:00:08]} Rfd8 {[%emt 0:00:07]} 14. h3 {[%emt 0:00:06]} h6 {[%emt 0:00:01]} 15. Ne2 {[%emt 0:00:34]} (15. Bb5 $11) 15... Nd5 {[%emt 0:00:37]} (15... Nh5 {seems wilder.} 16. Bh2 Qg5 17. g4 Bc5) 16. a4 {[%emt 0:03:12]} (16. Bxd5 $1 $15 Bxd5 (16... Rxd5 17. Nd4 $11) 17. Qc3) 16... Nxf4 $17 {[%emt 0:00:36]} 17. Nxf4 {[%emt 0:00:06][%cal Oc4e6]} Rxd1+ {[%emt 0:00:02]} 18. Rxd1 {[%emt 0:00:24][%cal Oc4e6]} Rd8 {[%emt 0:01:54]} ({Reject} 18... Bxa4 $6 19. Qxb7 Bxd1 20. Qxa8+ Qd8 21. Qxa7 $16) (18... Bf6 $17 19. Bb5 Qb6) 19. Rxd8+ $1 $11 {[%emt 0:00:08] The position is equal.} Bxd8 {[%emt 0:00:00] This pair of bishops is nice.} 20. Bxe6 $1 {[%emt 0:01:22]} fxe6 {[%emt 0:00:06]} 21. Qxe6+ {[%emt 0:00:01]} Kh7 {[%emt 0:00:02] [#] Threatens to win with ...Qe1+.} 22. Qg6+ {[%emt 0:00:03]} Kh8 {[%emt 0:00:08]} (22... Kg8 $5 23. Qe6+ $8 Kh7 (23... Kh8 24. Ng6+ Kh7 25. Nf8+ Kh8 26. Ng6+ Kh7 27. Nf8+ Kh8 28. Ng6+ $11) 24. Qg6+ Kg8 (24... Kh8 25. Qf7 $11) 25. Qe6+ $11) 23. Qf7 {[%emt 0:00:01] Inhibits Bc7.} Bf6 {[%emt 0:00:51]} 24. Ng6+ {[%emt 0:00:11]} Kh7 {[%emt 0:00:00]} 25. Nf8+ {[%emt 0:00:00]} Kh8 {[%emt 0:00:01]} 26. Ng6+ {[%emt 0:00:01]} Kh7 {[%emt 0:00:00]} 27. Nf8+ {[%emt 0:00:00]} Kh8 {[%emt 0:00:01]} 28. Ng6+ {[%emt 0:00:01] Weighted Error Value: White=0.12 (very precise) /Black=0.12 (very precise) .  Mistake:       	White=2     	Black=1      Inaccurate:     	White=1     	Black=1      OK:         	White=8     	Black=5      Best:        	White=1     	Black=1      Strong:       	White=2     	---} 1/2-1/2

[Event "CCT Julius Baer-D1 2024"]
[Site "Online"]
[Date "2024.09.27"]
[Round "1"]
[White "Grischuk, Alexander"]
[Black "Erigaisi Arjun"]
[Result "1/2-1/2"]
[ECO "C85"]
[WhiteElo "2689"]
[BlackElo "2778"]
[Annotator "RC"]
[PlyCount "223"]
[EventDate "2024.09.25"]
[EventType "swiss"]
[EventCountry "NET"]
[SourceTitle "playchess.com"]
[Source "ChessBase"]
[SourceQuality "1"]
[TimeControl "600+2"]

1. e4 {[%emt 0:00:02]} e5 {[%emt 0:00:03]} 2. Nf3 {[%emt 0:00:01]} Nc6 {[%emt 0:00:00]} 3. Bb5 {[%emt 0:00:01]} a6 {[%emt 0:00:01]} 4. Ba4 {[%emt 0:00:01]} Nf6 {[%emt 0:00:01]} 5. O-O {[%emt 0:00:01]} Be7 {[%emt 0:00:00]} 6. Bxc6 {[%emt 0:00:03]} dxc6 {[%emt 0:00:02]} 7. d3 {[%emt 0:00:01]} Bg4 {[%emt 0:00:03]} 8. h3 {[%emt 0:00:02]} Bh5 {[%emt 0:00:01]} 9. g4 {[%emt 0:00:28]} Nxg4 {[%emt 0:00:01]} 10. hxg4 {[%emt 0:00:00]} Bxg4 {[%emt 0:00:00]} 11. Kg2 {[%emt 0:01:15]} O-O {[%emt 0:00:26]} 12. Qe1 {[%emt 0:00:34]} Qd6 {[%emt 0:00:26]} 13. Nh2 {[%emt 0:01:43]} Bh5 {[%emt 0:00:08]} 14. f4 {[%emt 0:00:41]} f5 {[%emt 0:00:04]} 15. Nc3 {[%emt 0:00:03]} exf4 {[%emt 0:01:38]} 16. Bxf4 {[%emt 0:00:07]} Qd7 {[%emt 0:00:01]} 17. Qg3 {[%emt 0:00:17]} Rf6 {[%emt 0:00:04]} 18. exf5 {[%emt 0:00:29]} Rxf5 {[%emt 0:00:12]} 19. Ne4 {[%emt 0:00:04]} Raf8 {[%emt 0:00:27]} 20. Bxc7 {[%emt 0:00:56]} Qd4 {[%emt 0:00:09]} 21. Rxf5 {[%emt 0:02:28]} Rxf5 {[%emt 0:00:00]} 22. Rf1 {[%emt 0:00:01]} Rxf1 {[%emt 0:00:02]} 23. Nxf1 {[%emt 0:00:00]} Qxb2 {[%emt 0:00:01]} 24. Ne3 {[%emt 0:00:03]} Qxa2 {[%emt 0:00:21]} 25. Nf5 {[%emt 0:00:43]} Qxc2+ {[%emt 0:00:02]} 26. Kh3 {[%emt 0:00:01]} Bf8 {[%emt 0:00:30]} 27. Nf6+ {[%emt 0:00:04]} Kf7 {[%emt 0:00:01]} 28. Nxh5 {[%emt 0:00:02]} Qd1 {[%emt 0:00:00]} 29. Nf4 {[%emt 0:00:35]} Qh1+ {[%emt 0:00:05]} 30. Qh2 {[%emt 0:00:06]} Qf3+ {[%emt 0:00:02]} 31. Qg3 {[%emt 0:00:02]} Qh1+ {[%emt 0:00:01]} 32. Qh2 {[%emt 0:00:04]} Qf3+ {[%emt 0:00:01]} 33. Ng3 {[%emt 0:00:04]} g5 {[%emt 0:00:29]} 34. Qa2+ {[%emt 0:00:01]} Ke8 {[%emt 0:00:00]} 35. Qe6+ {[%emt 0:00:04]} Be7 {[%emt 0:00:02]} 36. Bd6 {[%emt 0:00:03]} g4+ {[%emt 0:00:02]} 37. Kh2 {[%emt 0:00:01]} Qf2+ {[%emt 0:00:01]} 38. Ng2 {[%emt 0:00:02]} Qf7 {[%emt 0:00:04]} 39. Qc8+ {[%emt 0:00:02]} Bd8 {[%emt 0:00:01]} 40. Qxg4 {[%emt 0:00:01]} Qd5 {[%emt 0:00:05]} 41. Ne4 {[%emt 0:00:02]} a5 {[%emt 0:00:04]} 42. Nf4 {[%emt 0:00:01]} Qf7 {[%emt 0:00:07]} 43. Nh5 {[%emt 0:00:02]} Bb6 {[%emt 0:00:28]} 44. Ng7+ {[%emt 0:00:05]} Kd8 {[%emt 0:00:01]} 45. Ne6+ {[%emt 0:00:01]} Ke8 {[%emt 0:00:01]} 46. Ng7+ {[%emt 0:00:02]} Kd8 {[%emt 0:00:01]} 47. Kg2 {[%emt 0:00:02]} a4 {[%emt 0:00:01]} 48. Ne6+ {[%emt 0:00:02]} Ke8 {[%emt 0:00:01]} 49. N6g5 {[%emt 0:00:01]} Qg6 {[%emt 0:00:23]} 50. Qc8+ {[%emt 0:00:06]} Bd8 {[%emt 0:00:01]} 51. Qe6+ {[%emt 0:00:00]} Qxe6 {[%emt 0:00:01]} 52. Nxe6 {[%emt 0:00:00]} Be7 {[%emt 0:00:09]} 53. Bxe7 {[%emt 0:00:02]} Kxe7 {[%emt 0:00:00]} 54. N6c5 {[%emt 0:00:02]} a3 {[%emt 0:00:06]} 55. Nc3 {[%emt 0:00:01]} Kd6 {[%emt 0:00:07]} 56. Nxb7+ {[%emt 0:00:02]} Ke5 {[%emt 0:00:01]} 57. Na2 {[%emt 0:00:04]} Kd4 {[%emt 0:00:01]} 58. Na5 {[%emt 0:00:03]} Kxd3 {[%emt 0:00:05]} 59. Nxc6 {[%emt 0:00:01]} h5 {[%emt 0:00:03]} 60. Kh3 {[%emt 0:00:01]} h4 {[%emt 0:00:01]} 61. Ncb4+ {[%emt 0:00:02]} Kc4 {[%emt 0:00:02]} 62. Kxh4 {[%emt 0:00:01]} Kb3 {[%emt 0:00:01]} 63. Kg4 {[%emt 0:00:01]} Kc4 {[%emt 0:00:00]} 64. Kf4 {[%emt 0:00:02]} Kd4 {[%emt 0:00:01]} 65. Kf3 {[%emt 0:00:01]} Kc4 {[%emt 0:00:02]} 66. Ke3 {[%emt 0:00:03]} Kc5 {[%emt 0:00:01]} 67. Kd3 {[%emt 0:00:03]} Kd6 {[%emt 0:00:01]} 68. Kd4 {[%emt 0:00:02]} Ke6 {[%emt 0:00:00]} 69. Nd5 {[%emt 0:00:01]} Kd6 {[%emt 0:00:03]} 70. Nf4 {[%emt 0:00:02]} Kc6 {[%emt 0:00:02]} 71. Nd3 {[%emt 0:00:01]} Kd6 {[%emt 0:00:01]} 72. Nc5 {[%emt 0:00:01]} Kc6 {[%emt 0:00:05]} 73. Ne4 {[%emt 0:00:01]} Kd7 {[%emt 0:00:02]} 74. Ke5 {[%emt 0:00:05]} Kc6 {[%emt 0:00:02]} 75. Nf6 {[%emt 0:00:06]} Kc5 {[%emt 0:00:02]} 76. Nd5 {[%emt 0:00:01]} Kc4 {[%emt 0:00:02]} 77. Kd6 {[%emt 0:00:02]} Kb3 {[%emt 0:00:03]} 78. Ndc3 {[%emt 0:00:02]} Kc4 {[%emt 0:00:00]} 79. Ke5 {[%emt 0:00:02]} Kc5 {[%emt 0:00:01]} 80. Ke4 {[%emt 0:00:03]} Kc4 {[%emt 0:00:00]} 81. Ke3 {[%emt 0:00:01]} Kc5 {[%emt 0:00:01]} 82. Kd3 {[%emt 0:00:00]} Kd6 {[%emt 0:00:00]} 83. Kd4 {[%emt 0:00:01]} Ke6 {[%emt 0:00:01]} 84. Ne4 {[%emt 0:00:01]} Kf5 {[%emt 0:00:01]} 85. Nc5 {[%emt 0:00:01]} Kf4 {[%emt 0:00:02]} 86. Nd3+ {[%emt 0:00:03]} Kf5 {[%emt 0:00:01]} 87. Kd5 {[%emt 0:00:01]} Kf6 {[%emt 0:00:02]} 88. Ke4 {[%emt 0:00:01]} Ke6 {[%emt 0:00:01]} 89. Nc5+ {[%emt 0:00:02]} Kd6 {[%emt 0:00:04]} 90. Kd4 {[%emt 0:00:01]} Kc6 {[%emt 0:00:01]} 91. Ne4 {[%emt 0:00:01]} Kd7 {[%emt 0:00:01]} 92. Ke5 {[%emt 0:00:03]} Kc6 {[%emt 0:00:02]} 93. Ke6 {[%emt 0:00:02]} Kc7 {[%emt 0:00:00]} 94. Kd5 {[%emt 0:00:05]} Kd7 {[%emt 0:00:02]} 95. Nc5+ {[%emt 0:00:01]} Ke7 {[%emt 0:00:00]} 96. Ke5 {[%emt 0:00:01]} Kf7 {[%emt 0:00:02]} 97. Ne4 {[%emt 0:00:03]} Ke7 {[%emt 0:00:00]} 98. Nf6 {[%emt 0:00:02]} Kf7 {[%emt 0:00:03]} 99. Nd5 {[%emt 0:00:00]} Kg6 {[%emt 0:00:00]} 100. Kf4 {[%emt 0:00:01]} Kf7 {[%emt 0:00:11]} 101. Kf5 {[%emt 0:00:01]} Kg7 {[%emt 0:00:01]} 102. Nf4 {[%emt 0:00:03]} Kf7 {[%emt 0:00:02]} 103. Ng6 {[%emt 0:00:00]} Ke8 {[%emt 0:00:15]} 104. Ke6 {[%emt 0:00:02]} Kd8 {[%emt 0:00:00]} 105. Ne5 {[%emt 0:00:04]} Ke8 {[%emt 0:00:07]} 106. Nd7 {[%emt 0:00:01]} Kd8 {[%emt 0:00:01]} 107. Nf6 {[%emt 0:00:01]} Kc7 {[%emt 0:00:01]} 108. Kd5 {[%emt 0:00:00]} Kb6 {[%emt 0:00:03]} 109. Ne8 {[%emt 0:00:14]} Kb5 {[%emt 0:00:04]} 110. Nd6+ {[%emt 0:00:00]} Kb6 {[%emt 0:00:02]} 111. Nc4+ {[%emt 0:00:01]} Kc7 {[%emt 0:00:00]} 112. Ne5 {[%emt 0:00:01]} 1/2-1/2

[Event "CCT Julius Baer-D1 2024"]
[Site "Online"]
[Date "2024.09.27"]
[Round "1.1"]
[White "Vachier-Lagrave, Maxime"]
[Black "LevonAronian"]
[Result "1-0"]
[ECO "C11"]
[WhiteElo "2878"]
[BlackElo "2790"]
[Annotator "RC"]
[PlyCount "101"]
[EventDate "2024.09.25"]
[EventType "swiss"]
[EventCountry "NET"]
[SourceTitle "playchess.com"]
[Source "ChessBase"]
[SourceQuality "1"]
[TimeControl "600+2"]

1. e4 {[%emt 0:00:02]} e6 {[%emt 0:00:03]} 2. d4 {[%emt 0:00:01]} d5 {[%emt 0:00:00]} 3. Nc3 {[%emt 0:00:01]} Nf6 {[%emt 0:00:01]} 4. e5 {[%emt 0:00:01]} Nfd7 {[%emt 0:00:01]} 5. Nce2 {[%emt 0:00:01]} c5 {[%emt 0:00:01]} 6. c3 {[%emt 0:00:00]} Nc6 {[%emt 0:00:01]} 7. Nf3 {[%emt 0:00:01]} Be7 {[%emt 0:00:05]} 8. h4 {[%emt 0:00:04]} Qa5 {[%emt 0:00:39]} 9. a3 {[%emt 0:00:30]} cxd4 {[%emt 0:00:47]} 10. b4 {[%emt 0:00:02]} Qb6 {[%emt 0:00:00]} 11. cxd4 {[%emt 0:00:02]} f6 {[%emt 0:00:01]} 12. Nf4 {[%emt 0:01:06]} fxe5 {[%emt 0:00:18]} 13. Nxe6 {[%emt 0:00:01]} Bf6 {[%emt 0:00:02]} 14. Be3 {[%emt 0:00:04]} e4 {[%emt 0:00:47]} 15. Nfg5 {[%emt 0:00:08]} Nf8 {[%emt 0:00:09]} 16. Nf4 {[%emt 0:00:05]} Ne7 {[%emt 0:00:38]} 17. Rc1 {[%emt 0:00:27]} h6 {[%emt 0:00:12]} 18. Ngh3 {[%emt 0:00:04]} Be6 {[%emt 0:01:08]} 19. Be2 {[%emt 0:00:23]} Nfg6 {[%emt 0:01:15]} 20. Nxe6 {[%emt 0:00:07]} Qxe6 {[%emt 0:00:02]} 21. h5 {[%emt 0:00:09]} Nh4 {[%emt 0:00:20]} 22. Nf4 {[%emt 0:00:02]} Qd6 {[%emt 0:00:06]} 23. Bb5+ {[%emt 0:00:15]} Kf7 {[%emt 0:00:06]} 24. Qg4 {[%emt 0:00:05]} Nhf5 {[%emt 0:01:00]} 25. Nxd5 {[%emt 0:00:11]} Rhc8 {[%emt 0:01:12]} 26. Rxc8 {[%emt 0:00:03]} Nxe3 {[%emt 0:00:17]} 27. Be8+ {[%emt 0:00:38]} Kf8 {[%emt 0:00:04]} 28. Rxa8 {[%emt 0:00:02]} Nxg4 {[%emt 0:00:09]} 29. Bg6+ {[%emt 0:00:04]} Nc8 {[%emt 0:00:02]} 30. Rxc8+ {[%emt 0:00:50]} Bd8 {[%emt 0:00:01]} 31. Ne3 {[%emt 0:00:35]} Nxe3 {[%emt 0:00:31]} 32. fxe3 {[%emt 0:00:00]} Qg3+ {[%emt 0:00:01]} 33. Kf1 {[%emt 0:00:00]} Ke7 {[%emt 0:00:26]} 34. Rh3 {[%emt 0:00:09]} Qg4 {[%emt 0:00:01]} 35. Rc1 {[%emt 0:00:05]} Kd6 {[%emt 0:00:09]} 36. Kg1 {[%emt 0:00:06]} Bg5 {[%emt 0:00:08]} 37. Kh1 {[%emt 0:00:37]} b5 {[%emt 0:00:02]} 38. Re1 {[%emt 0:00:40]} Bh4 {[%emt 0:00:10]} 39. Ra1 {[%emt 0:01:14]} Bf2 {[%emt 0:00:02]} 40. Kh2 {[%emt 0:00:00]} a6 {[%emt 0:00:13]} 41. Ra2 {[%emt 0:00:04]} Bh4 {[%emt 0:00:12]} 42. a4 {[%emt 0:00:08]} Bg5 {[%emt 0:00:01]} 43. axb5 {[%emt 0:00:04]} axb5 {[%emt 0:00:00]} 44. Rf2 {[%emt 0:00:04]} Kc7 {[%emt 0:00:04]} 45. Bf5 {[%emt 0:00:20]} Qd1 {[%emt 0:00:00]} 46. Bxe4 {[%emt 0:00:01]} Qe1 {[%emt 0:00:01]} 47. Rff3 {[%emt 0:00:21]} Qxb4 {[%emt 0:00:05]} 48. Rf7+ {[%emt 0:00:05]} Kb6 {[%emt 0:00:01]} 49. Rxg7 {[%emt 0:00:14]} Qe1 {[%emt 0:00:04]} 50. Rxg5 {[%emt 0:00:03]} hxg5 {[%emt 0:00:01]} 51. h6 {[%emt 0:00:02]} 1-0